Workbook

Sheet Measuring variability
B1: Measuring Random Variability
B3: Let X be a random variable with the distribution: | H3: x | I3: Pr(X=x)
H4: 1 | I4: 0.2
B5: The expected value of X is | E5: =SUMPRODUCT(H4:H7,I4:I7) -> 2.75 | H5: 2 | I5: 0.15
H6: 3 | I6: 0.35
B7: How could we estimate the extent to which the realized value | H7: 4 | I7: 0.3
B8: of X might deviate from the expected value?
B10: One "natural" approach would be to examine the | G10: x-E[X] | H10: x | I10: Pr(X=x)
B11: possible differences directly: | G11: =H4-$E$5 -> -1.75 | H11: 1 | I11: 0.2
G12: =H5-$E$5 -> -0.75 | H12: 2 | I12: 0.15
B13: The expected value of these differences, of | G13: =H6-$E$5 -> 0.25 | H13: 3 | I13: 0.35
B14: course, is 0. In order to measure "deviations" from | G14: =H7-$E$5 -> 1.25 | H14: 4 | I14: 0.3
B15: the expected value, rather than simple differences,
B16: we need to convert both positive and negative
B17: differences into positive deviations.
G18: |x-E[X]| | H18: x | I18: Pr(X=x)
B19: We might choose to do this by looking at the | G19: =ABS(G11) -> 1.75 | H19: 1 | I19: 0.2
B20: absolute values of the differences: | G20: =ABS(G12) -> 0.75 | H20: 2 | I20: 0.15
G21: =ABS(G13) -> 0.25 | H21: 3 | I21: 0.35
B22: We could then compute the expected value of | G22: =ABS(G14) -> 1.25 | H22: 4 | I22: 0.3
B23: these absolute deviations: | E23: =SUMPRODUCT(G19:G22,I19:I22) -> 0.925
B24: and use this as a measure of the inherent
B25: "variability" of X : X will differ from its expected
B26: value, on average, by this amount.
B28: This all seems very natural. But it's not what we're going to do!
B30: Why not? The best answer I can offer is that we live in a world where "distance" isn't
B31: meant to be measured by combining absolute values: Blame God.
B33: Instead, we live in a world where we measure distances using the Pythagorean Theorem:
B34: The distance between two points (x1, y1) and (x2, y2) is
B38: We square the differences in each dimension, add the squares, and then take the
B39: square-root.
B41: By analogy, we can convert the possible differences of X from its expected value to
B42: positive deviations by squaring the differences. This will give us an initially more
B43: complicated way of measuring variability than simply using absolute values - but
B44: ultimately we'll end up with an easier way of actually dealing with the type of variability
B45: found in the "real" world.

Sheet Variance, StdDev
B1: Squared Deviations
B3: Let X be a random variable with the distribution: | H3: x | I3: Pr(X=x)
H4: 1 | I4: 0.2
B5: The expected value of X is | E5: =SUMPRODUCT(H4:H7,I4:I7) -> 2.75 | H5: 2 | I5: 0.15
H6: 3 | I6: 0.35
H7: 4 | I7: 0.3
B9: The differences between the possible | G9: x-E[X] | H9: x | I9: Pr(X=x)
B10: realized values of X and its expected value | G10: =H4-$E$5 -> -1.75 | H10: 1 | I10: 0.2
B11: are: | G11: =H5-$E$5 -> -0.75 | H11: 2 | I11: 0.15
G12: =H6-$E$5 -> 0.25 | H12: 3 | I12: 0.35
G13: =H7-$E$5 -> 1.25 | H13: 4 | I13: 0.3
B15: In order to convert the differences between the | G15: (x-E[X])2 | H15: x | I15: Pr(X=x)
B16: possible realized values of X , and its expected | G16: =G10^2 -> 3.0625 | H16: 1 | I16: 0.2
B17: value, into positive deviations, we will square the | G17: =G11^2 -> 0.5625 | H17: 2 | I17: 0.15
B18: differences: | G18: =G12^2 -> 0.0625 | H18: 3 | I18: 0.35
G19: =G13^2 -> 1.5625 | H19: 4 | I19: 0.3
B20: And finally, we'll summarize what we see by
B21: computing the expected value of this squared
B22: difference: | D22: =SUMPRODUCT(G16:G19,I16:I19) -> 1.1875
B24: This is the variance of X : | F24: Var(X) = E[ (X-E[X])2 ] .
B26: The variance of X is measured in "square" units. For example, the variance of the
B27: profit you might make on an investment shows up in square-dollars, a rather
B28: difficult number to interpret directly. In order to restore "normal" units of measurement,
B29: we can take the square-root of the variance: | G29: =SQRT(D22) -> 1.089724736
B31: This is the standard deviation of X : | F31: StdDev(X) =
B33: While not completely accurate, a standard (and acceptable) interpretation of
B34: of the standard deviation of a random variable X is that it tells us how far, on
B35: average, the realized value of X will differ from the expected value.
B37: Why do we "need" both the variance and the standard deviation?
B39: Standard deviations are easier to interpret - But it's easier to do computations
B40: using variances. For many practical problems, we start with standard deviations
B41: as "givens," square them to turn them into variances, do our calculations in
B42: terms of the variances, and take a square root at the end to convert a final
B43: resulting variance back into an interpretable standard deviation.

Sheet Computations
B1: Computations
B3: A bit of algebra yields the following useful relationship:
C5: Var(X) = E[ (X-E[X])2 ] = E[X2] - (E[X])2 .
B7: The first expression is easier to interpret - variance is the "average squared difference
B8: from the expected value" - but the second provides an easier way of actually computing
B9: the variance of a random variable. | J9: Pr(X£x)
H10: x | I10: Pr(X=x) | J10: 0
B11: E[X] = | D11: =SUMPRODUCT(H11:H14,I11:I14) -> 2.75 | H11: 1 | I11: 0.2 | J11: =J10+I11 -> 0.2
B12: Var(X) = | D12: =SUMPRODUCT(H11:H14^2,I11:I14)-(SUMPRODUCT(H11:H14,I11:I14))^2 -> 1.1875 | E12: or | F12: =SUMPRODUCT(H11:H14^2,I11:I14)-D11^2 -> 1.1875 | H12: 2 | I12: 0.15 | J12: =J11+I12 -> 0.35
B13: StdDev(X) = | D13: =SQRT(D12) -> 1.089724736 | H13: 3 | I13: 0.35 | J13: =J12+I13 -> 0.7
H14: 4 | I14: 0.3 | J14: =J13+I14 -> 1
B15: Just as we can use simulation to estimate the
B16: expected value of a random variable, we can also use
B17: it to estimate the standard deviation (and therefore
B18: the variance, as well):
C20: =LOOKUP(RAND(),J10:J13,H11:H14) -> 2 | D20: simulated value of X | G20: =showformula(C20) -> =LOOKUP(RAND(),J10:J13,H11:H14)
C22: =ADDRESS(ROW($C$20),COLUMN($C$20)) -> $C$20 | D22: monitored cell
C23: 2.75022 | D23: mean
C24: 1.088936091 | D24: sample standard deviation
C25: 1 | D25: minimum
C26: 4 | D26: maximum
C27: 100000 | D27: number of simulation runs
C29: =C24^2 -> 1.185781809 | D29: estimated variance

Sheet Simulation
B1: Computations
B3: A bit of algebra yields the following useful relationship:
C5: Var(X) = E[ (X-E[X])2 ] = E[X2] - (E[X])2 .
B7: The first expression is easier to interpret - variance is the "average squared difference
B8: from the expected value" - but the second provides an easier way of actually computing
B9: the variance of a random variable. | J9: Pr(X£x)
H10: x | I10: Pr(X=x) | J10: 0
B11: E[X] = | D11: =SUMPRODUCT(H11:H14,I11:I14) -> 2.75 | H11: 1 | I11: 0.2 | J11: =J10+I11 -> 0.2
B12: Var(X) = | D12: =SUMPRODUCT(H11:H14^2,I11:I14)-(SUMPRODUCT(H11:H14,I11:I14))^2 -> 1.1875 | E12: or | F12: =SUMPRODUCT(H11:H14^2,I11:I14)-D11^2 -> 1.1875 | H12: 2 | I12: 0.15 | J12: =J11+I12 -> 0.35
B13: StdDev(X) = | D13: =SQRT(D12) -> 1.089724736 | H13: 3 | I13: 0.35 | J13: =J12+I13 -> 0.7
H14: 4 | I14: 0.3 | J14: =J13+I14 -> 1
B15: Just as we can use simulation to estimate the
B16: expected value of a random variable, we can also use
B17: it to estimate the standard deviation (and therefore
B18: the variance, as well):
C20: =LOOKUP(RAND(),J10:J13,H11:H14) -> 4 | D20: simulated value of X | G20: =showformula(C20) -> =LOOKUP(RAND(),J10:J13,H11:H14)
C22: =ADDRESS(ROW($C$20),COLUMN($C$20)) -> $C$20 | D22: monitored cell
C23: 2.75022 | D23: mean
C24: 1.088936091 | D24: sample standard deviation
C25: 1 | D25: minimum
C26: 4 | D26: maximum
C27: 100000 | D27: number of simulation runs
C29: =C24^2 -> 1.185781809 | D29: estimated variance

Sheet Sums (with independence)
B1: Sums (with independence)
B3: If X and Y are independent random variables, it's easy to show that
K4: ·
C5: Var(X+Y) = Var(X) + Var(Y) + 2 ( E[XY] - E[X]·E[Y] ) = Var(X) + Var(Y) .
G8: X
B9: Let X and Y have the joint distribution: | G9: 2 | H9: 3 | I9: 5 | J9: 15
E10: Y | F10: 10 | G10: =$K10*G$13 -> 0.06 | H10: =$K10*H$13 -> 0.09 | I10: 0.075 | J10: 0.075 | K10: 0.3
B11: E[X] = | C11: =SUMPRODUCT(G9:J9,G13:J13) -> 6.3 | F11: 20 | G11: =$K11*G$13 -> 0.08 | H11: 0.12 | I11: 0.1 | J11: 0.1 | K11: 0.4
B12: Var(X) = | C12: =SUMPRODUCT(G9:J9^2,G13:J13)-C11^2 -> 26.31 | F12: 30 | G12: 0.06 | H12: 0.09 | I12: 0.075 | J12: 0.075 | K12: 0.3
B13: E[Y] = | C13: =SUMPRODUCT(F10:F12,K10:K12) -> 20 | G13: 0.2 | H13: 0.3 | I13: 0.25 | J13: 0.25
B14: Var(Y) = | C14: =SUMPRODUCT(F10:F12^2,K10:K12)-C13^2 -> 60
G15: =$F10*G$9 -> 20 | H15: 30 | I15: 50 | J15: 150
B16: The possible values of XY are | G16: 40 | H16: 60 | I16: 100 | J16: 300
G17: 60 | H17: 90 | I17: 150 | J17: 450
B19: We could tediously work out the probability | G19: z | H19: Pr(Z=z)
B20: distribution of Z = X + Y , and then compute | G20: 12 | H20: =G10 -> 0.06
B21: the variance of Z directly: | E21: =SUMPRODUCT(G20:G29^2,H20:H29)-SUMPRODUCT(G20:G29,H20:H29)^2 -> 86.31 | G21: 13 | H21: =H10 -> 0.09
G22: 15 | H22: =I10 -> 0.075
B23: Or, simply using the previous calculations, and | G23: 22 | H23: =G11 -> 0.08
B24: avoiding the tedium: | G24: 23 | H24: =H11 -> 0.12
G25: 25 | H25: =J10+I11 -> 0.175
B26: Var(X+Y) = | D26: =C12+C14 -> 86.31 | G26: 32 | H26: =G12 -> 0.06
G27: 33 | H27: =H12 -> 0.09
G28: 35 | H28: =J11+I12 -> 0.175
G29: 45 | H29: =J12 -> 0.075
B32: Optional spreadsheet skills:
B34: If you've learned how to enter "array" formulas in Excel, the following formulas
B35: provide some alternative, more direct, calculations:
B37: E[X] = | C37: =SUM(G38:J38*G39:J41) -> 7.33 | G37: X
B38: Var(X) = | C38: =SUM(G38:J38^2*G39:J41)-C37^2 -> 33.7411 | G38: 2 | H38: 3 | I38: 5 | J38: 15
B39: E[Y] = | C39: =SUM(F39:F41*G39:J41) -> 19.8 | E39: Y | F39: 10 | G39: 0.05 | H39: 0.12 | I39: 0.03 | J39: 0.18
B40: Var(Y) = | C40: =SUM(F39:F41^2*G39:J41)-C39^2 -> 73.96 | F40: 20 | G40: 0.02 | H40: 0.07 | I40: 0.08 | J40: 0.09
B41: Cov(X,Y) = | C41: =SUM(F39:F41*G38:J38*G39:J41)-C37*C39 -> -11.434 | F41: 30 | G41: 0.14 | H41: 0.13 | I41: 0 | J41: 0.09

Sheet Rescaling
B1: Rescaling
B3: The following observations can simplify some problems: If X is a random variable,
B4: and a and b are constants,
C6: E[aX+b] = a∙E[X] + b
C8: Var(aX+b) = a2∙Var(X)
C10: StdDev(aX+b) = |a|∙StdDev(X)

Sheet I.I.D. Sums (with independence)
B1: Sums (and Averages) of Independent, Identically-Distributed Random Variables
B4: Let X represent the end result of a random process which can be repeated. For
B5: example, X might represent retail sales of an item over the course of a week, or the
B6: change in the price of a share of common stock from one business day to the next, or
B7: the amount of money you win (or lose) after betting $1 on. a particular number on a
B8: roulette wheel.
B10: Let X1, X2,…, Xn be n independent observations of X . Then
B12: E[ X1 + X2 +…+ Xn ] = E[X1] + E[X2] +…+ E[Xn] = n∙E[X] , and
B14: (since all of the pairwise covariances are zero)
B16: Var( X1 + X2 +…+ Xn ) = Var(X1) + Var(X2) +…+ Var(Xn) = n∙Var(X) .
B18: It follows that
H19: Finance note: This is why the square-root of the time-to-expiration appears in the Black-Scholes option-pricing formula.
B20: StdDev( X1 + X2 +…+ Xn ) = √n∙StdDev(X) .
B22: Similarly,
B24: E[ (X1 + X2 +…+ Xn ) / n ] = E[X] ,
B26: Var( (X1 + X2 +…+ Xn ) / n ) = Var(X) / n , and
B28: StdDev( (X1 + X2 +…+ Xn ) / n ) = StdDev(X) / √n .
B31: Let's check this via simulation. | F31: distribution of X | H31: Pr(X£x)
F32: x | G32: Pr(X=x) | H32: 0
B33: 16 simulated observations of X | F33: 1 | G33: 0.2 | H33: =H32+G33 -> 0.2
F34: 2 | G34: 0.15 | H34: =H33+G34 -> 0.35
C35: =LOOKUP(RAND(),$H$32:$H$35,$F$33:$F$36) -> 3 | F35: 3 | G35: 0.35 | H35: =H34+G35 -> 0.7
C36: =LOOKUP(RAND(),$H$32:$H$35,$F$33:$F$36) -> 1 | F36: 4 | G36: 0.3 | H36: =H35+G36 -> 1
C37: 4
C38: 4 | F38: first | G38: sum | H38: average
C39: 3 | F39: =C35 -> 3 | G39: =SUM(C35:C50) -> 39 | H39: =AVERAGE(C35:C50) -> 2.4375
C40: 1
C41: 4 | F41: =ADDRESS(ROW($F$39),COLUMN($F$39)) -> $F$39 | G41: =ADDRESS(ROW($G$39),COLUMN($G$39)) -> $G$39 | H41: =ADDRESS(ROW($H$39),COLUMN($H$39)) -> $H$39 | I41: monitored cell
C42: 1 | F42: 2.75606 | G42: 44.03348 | H42: 2.7520925 | I42: mean
C43: 4 | F43: 1.088377288 | G43: 4.347901578 | H43: 0.2717438486 | I43: sample standard deviation
C44: 4 | F44: 1 | G44: 24 | H44: 1.5 | I44: minimum
C45: 2 | F45: 4 | G45: 60 | H45: 3.75 | I45: maximum
C46: 1 | F46: 100000 | G46: 100000 | H46: 100000 | I46: number of simulation runs
C47: 4
C48: 1 | F48: 4 times as large | H48: 1/4 as large
C49: 1
C50: 1

Sheet Managerial objective
B1: A Bit of Theory (and a Practical Conclusion)
B3: "Chebyshev's Inequality" is a very general statement concerning how much probability
B4: can reside in the extreme "tails" of a probability distribution. For any random variable X,
B6: Pr( | X - E[X] | ≥ t∙StdDev(X) ) ≤ 1/t2
B8: For example, this tells us that X can take values at least 2 standard deviations away
B9: from its expected value no more than 25% of the time, and can be more than 3 or 4
B10: standard deviations away from its expected value no more than 11.1% or 6.25% of the
B11: time, respectively.
B13: If I were to break my capital into n equal amounts, and invest in n stocks with annual
B14: rates of return which vary independently, with the same expected return r and the same
B15: standard deviation σ, then the rate of return on my portfolio, R, will have an expected
B16: value of r, with a standard deviation of σ/√n . Then the inequality can be rewritten as
B18: Pr( | R - r | ≥ ε ) ≤ 1/n ∙ (σ2/ε2) ,
B20: which means that, with enough diversification (i.e., a large enough n), the actual rate of
B21: return on the portfolio will, just about certainly, be very close to r, the average of the
B22: expected returns across all the stocks in the portfolio. This means that I can't do any
B23: better than to ask the managers of the firms in which I invest to each maximize the
B24: expected return on that company's capital.
B26: Qualifier: Of course, the rates of return are actually unlikely to be independent, since some
B27: economic factors will affect all of the companies. As well, the returns are based on share
B28: prices, which don't perfectly match internal return on investment. You'll discuss these
B29: issues in detail in your finance classes, and you'll find that the same conclusion holds (for
B30: all practical purposes) -
B32: As an investor, you want managers to maximize expected return on investment.
